lending/lending_fUSD_20240509
["ID","MTS","AMOUNT","RATE_DAILY","PERIOD"]
[326734691,1715290267817,-500.0,0.00041369,31]
[326734692,1715290267828,-1031.96,0.00041369,31]
[326734693,1715290267841,-500.0,0.00041369,31]
[326734694,1715290267850,-655.5,0.00041369,31]
[326734695,1715290267859,-500.0,0.00041369,31]
[326734696,1715290267870,-500.0,0.00041369,31]
[326734697,1715290267879,-500.0,0.00041369,31]
[326734698,1715290267890,-500.0,0.00041369,31]
[326734699,1715290267899,-500.0,0.00041369,31]
[326734700,1715290267909,-914.2,0.00041369,31]
[326734701,1715290267923,-500.0,0.00041369,31]
[326734702,1715290267934,-652.93,0.00041369,31]
[326734703,1715290268089,-500.0,0.00041369,31]
[326734704,1715290268099,-500.0,0.00041369,31]
[326734705,1715290268109,-512.62,0.00041369,31]
[326734706,1715290268118,-500.0,0.00041369,31]
[326734707,1715290268128,-500.0,0.00041369,31]
[326734708,1715290268138,-292.27911098,0.00041369,31]
[326734709,1715290268148,-500.0,0.00041369,31]
[326734710,1715290268157,-500.0,0.00041369,31]
[326734711,1715290268166,-500.0,0.00041369,31]
[326734712,1715290268176,-500.0,0.00041369,31]
[326734713,1715290268185,-500.0,0.00041369,31]
[326734714,1715290268194,-500.0,0.00041369,31]
[326734715,1715290268203,-500.0,0.00041369,31]
[326734716,1715290268214,-500.0,0.00041369,31]
[326734717,1715290268223,-500.0,0.00041369,31]
[326734718,1715290268234,-500.0,0.00041369,31]
[326734719,1715290268244,-500.0,0.00041369,31]
[326734720,1715290268253,-609.55,0.00041369,31]
[326734721,1715290268263,-650.73,0.00041369,31]
[326734722,1715290268272,-1710.98,0.00041369,31]
[326734723,1715290268282,-500.0,0.00041369,31]
[326734724,1715290268293,-838.03,0.00041369,31]
[326734725,1715290268302,-500.0,0.00041369,31]
[326734726,1715290268311,-500.0,0.00041369,31]
[326734727,1715290268320,-502.13,0.00041369,31]
[326734728,1715290268329,-500.0,0.00041369,31]
[326734729,1715290268338,-500.0,0.00041369,31]
[326734730,1715290268347,-500.0,0.00041369,31]
[326734731,1715290268357,-500.0,0.00041369,31]
[326734732,1715290268367,-500.0,0.00041369,31]
[326734733,1715290268378,-500.0,0.00041369,31]
[326734734,1715290268387,-1157.79,0.00041369,31]
[326734735,1715290268397,-812.76,0.00041369,2]
[326734736,1715290268407,-500.0,0.00041369,31]
[326734737,1715290268418,-500.0,0.00041369,31]
[326734738,1715290268428,-572.44476912,0.00041369,31]
[326734739,1715290268437,-500.0,0.00041369,31]
[326734740,1715290268447,-500.0,0.00041369,31]
[326734741,1715290268457,-500.0,0.00041369,31]
[326734742,1715290268466,-500.0,0.00041369,31]
[326734743,1715290268477,-150.0,0.00041369,31]
[326734744,1715290268488,-500.0,0.00041369,31]
[326734745,1715290268499,-414.14319067,0.00041369,31]
[326734746,1715290268508,-456.38280011,0.00041369,31]
[326734747,1715290268517,-500.0,0.00041369,31]
[326734748,1715290268528,-500.0,0.00041369,31]
[326734749,1715290268539,-500.0,0.00041369,31]
[326734750,1715290268549,-168.23518753,0.00041369,31]
[326734751,1715290268560,-500.0,0.00041369,31]
[326734752,1715290268571,-500.0,0.00041369,31]
[326734753,1715290268581,-503.39583442,0.00041369,31]
[326734754,1715290268591,-500.0,0.00041369,31]
[326734755,1715290268601,-500.0,0.00041369,31]
[326734756,1715290268614,-837.56,0.00041369,31]
[326734757,1715290268623,-500.0,0.00041369,31]
[326734758,1715290268634,-500.0,0.00041369,31]
[326734759,1715290268643,-518.17853021,0.00041369,31]
[326734760,1715290268654,-500.0,0.00041369,31]
[326734761,1715290268667,-617.0,0.00041369,31]
[326734762,1715290268676,-500.0,0.00041369,31]
[326734763,1715290268685,-575.26,0.00041369,31]
[326734764,1715290268694,-500.0,0.00041369,31]
[326734765,1715290268704,-2275.95,0.00041369,31]
[326734766,1715290268713,-541.70502288,0.00041369,31]
[326734767,1715290268722,-536.42,0.00041369,31]
[326734768,1715290268732,-500.0,0.00041369,31]
[326734769,1715290268741,-500.0,0.00041369,31]
[326734770,1715290268750,-586.99,0.00041369,31]
[326734771,1715290268759,-500.0,0.00041369,31]
[326734772,1715290268769,-500.0,0.00041369,31]
[326734773,1715290268779,-638.06,0.00041369,31]
[326734774,1715290268789,-500.0,0.00041369,31]
[326734775,1715290268798,-783.57,0.00041369,31]
[326734776,1715290268807,-500.0,0.00041369,31]
[326734777,1715290268817,-1957.57,0.00041369,31]
[326734778,1715290268827,-500.0,0.00041369,31]
[326734779,1715290268836,-500.0,0.00041369,31]
[326734780,1715290268850,-500.0,0.00041369,31]
[326734781,1715290268858,-500.0,0.00041369,31]
[326734782,1715290268868,-1602.79,0.00041369,31]
[326734783,1715290268877,-1202.77,0.00041369,31]
[326734784,1715290268890,-500.0,0.00041369,31]
[326734785,1715290268900,-2000.0,0.00041369,30]
[326734786,1715290268909,-500.0,0.00041369,31]
[326734787,1715290268921,-500.0,0.00041369,31]
[326734788,1715290268931,-500.0,0.00041369,31]
[326734789,1715290268940,-500.0,0.00041369,31]
[326734790,1715290268949,-500.0,0.00041369,31]
[326734791,1715290268958,-500.0,0.00041369,31]
[326734792,1715290268968,-500.0,0.00041369,31]
[326734793,1715290268977,-1204.54,0.00041369,31]
[326734794,1715290268986,-500.0,0.00041369,31]
[326734795,1715290268996,-1956.97,0.00041369,31]
[326734796,1715290269006,-500.0,0.00041369,30]
[326734797,1715290269016,-500.0,0.00041369,31]
[326734798,1715290269026,-500.0,0.00041369,31]
[326734799,1715290269037,-217.133534,0.00041369,14]
[326734800,1715290269046,-500.0,0.00041369,31]
[326734801,1715290269056,-500.0,0.00041369,31]
[326734802,1715290269066,-500.0,0.00041369,31]
[326734803,1715290269075,-500.0,0.00041369,31]
[326734804,1715290269085,-500.0,0.00041369,31]
[326734805,1715290269095,-500.0,0.00041369,31]
[326734806,1715290269105,-500.0,0.00041369,31]
[326734807,1715290269115,-500.0,0.00041369,31]
[326734808,1715290269125,-1059.73,0.00041369,31]
[326734809,1715290269135,-500.0,0.00041369,31]
[326734810,1715290269144,-1106.02,0.00041369,31]
[326734811,1715290269154,-500.0,0.00041369,31]
[326734812,1715290269164,-1909.69,0.00041369,31]
[326734813,1715290269173,-496.87611773,0.00041369,31]
[326734814,1715290269183,-500.0,0.00041369,31]
[326734815,1715290269193,-500.0,0.00041369,31]
[326734816,1715290269202,-500.0,0.00041369,31]
[326734817,1715290269212,-491.1687643,0.00041369,31]
[326734818,1715290269221,-500.0,0.00041369,31]
[326734819,1715290269231,-500.0,0.00041369,31]
[326734820,1715290269240,-500.0,0.00041369,31]
[326734821,1715290269250,-494.66792731,0.00041369,31]
[326734822,1715290269259,-1140.76,0.00041369,31]
[326734823,1715290269269,-500.0,0.00041369,31]
[326734824,1715290269279,-500.0,0.00041369,31]
[326734825,1715290269288,-500.0,0.00041369,31]
[326734826,1715290269298,-500.0,0.00041369,31]
[326734827,1715290269307,-151.0,0.00041369,14]
[326734828,1715290269317,-151.0,0.00041369,14]
[326734829,1715290269326,-500.0,0.00041369,31]
[326734830,1715290269335,-500.0,0.00041369,31]
[326734831,1715290269345,-500.0,0.00041369,31]
[326734832,1715290269355,-500.0,0.00041369,31]
[326734833,1715290269364,-1043.65,0.00041369,31]
[326734834,1715290269373,-500.0,0.00041369,31]
[326734835,1715290269383,-947.45,0.00041369,31]
[326734836,1715290269393,-500.0,0.00041369,31]
[326734837,1715290269402,-915.39,0.00041369,31]
[326734838,1715290269411,-500.0,0.00041369,31]
[326734839,1715290269420,-500.0,0.00041369,31]
[326734840,1715290269430,-500.0,0.00041369,31]
[326734841,1715290269440,-1300.06,0.00041369,31]
[326734842,1715290269449,-500.0,0.00041369,2]
[326734843,1715290269459,-528.52034898,0.00041369,31]
[326734844,1715290269468,-500.0,0.00041369,31]
[326734845,1715290269477,-500.0,0.00041369,31]
[326734846,1715290269487,-500.0,0.00041369,31]
[326734847,1715290269497,-1582.03,0.00041369,2]
[326734848,1715290269507,-500.0,0.00041369,31]
[326734849,1715290269516,-151.0,0.00041369,14]
[326734850,1715290269526,-500.0,0.00041369,31]
[326734851,1715290269536,-500.0,0.00041369,31]
[326734852,1715290269546,-500.0,0.00041369,31]
[326734853,1715290269555,-549.57,0.00041369,31]
[326734854,1715290269565,-500.0,0.00041369,31]
[326734855,1715290269574,-500.0,0.00041369,31]
[326734856,1715290269584,-500.0,0.00041369,31]
[326734857,1715290269594,-500.0,0.00041369,31]
[326734858,1715290269604,-500.0,0.00041369,31]
[326734859,1715290269614,-500.0,0.00041369,31]
[326734860,1715290269625,-1226.01,0.00041369,31]
[326734861,1715290269634,-500.0,0.00041369,31]
[326734862,1715290269645,-1445.73,0.00041369,31]
[326734863,1715290269655,-500.0,0.00041369,31]
[326734864,1715290269665,-500.0,0.00041369,31]
[326734865,1715290269682,-500.0,0.00041369,31]
[326734866,1715290269691,-500.0,0.00041369,31]
[326734867,1715290269700,-500.0,0.00041369,31]
[326734868,1715290269709,-500.0,0.00041369,2]
[326734869,1715290269719,-500.0,0.00041369,31]
[326734870,1715290269728,-777.78,0.00041369,31]
[326734871,1715290269738,-500.0,0.00041369,31]
[326734872,1715290269748,-500.0,0.00041369,31]
[326734873,1715290269759,-151.0,0.00041369,14]
[326734874,1715290269769,-1441.41,0.00041369,31]
[326734875,1715290269778,-500.0,0.00041369,31]
[326734876,1715290269787,-500.0,0.00041369,31]
[326734877,1715290269796,-563.74774189,0.00041369,31]
[326734878,1715290269805,-500.0,0.00041369,31]
[326734879,1715290269815,-500.0,0.00041369,31]
[326734880,1715290269825,-889.65,0.00041369,31]
[326734881,1715290269836,-500.0,0.00041369,31]
[326734882,1715290269854,-500.0,0.00041369,31]
[326734883,1715290269873,-500.0,0.00041369,31]
[326734884,1715290269884,-292.01764964,0.00041369,31]
[326734885,1715290269895,-500.0,0.00041369,31]
[326734886,1715290269905,-500.0,0.00041369,31]
[326734887,1715290269915,-500.0,0.00041369,31]
[326734888,1715290269924,-500.0,0.00041369,31]
[326734889,1715290269934,-1043.61,0.00041369,31]
[326734890,1715290269944,-500.0,0.00041369,31]
[326734891,1715290269953,-1085.76,0.00041369,31]
[326734892,1715290269962,-500.0,0.00041369,31]
[326734893,1715290269971,-500.0,0.00041369,31]
[326734894,1715290269981,-500.0,0.00041369,31]
[326734895,1715290269990,-1399.12,0.00041369,31]
[326734896,1715290269999,-500.0,0.00041369,31]
[326734897,1715290270009,-500.0,0.00041369,31]
[326734898,1715290270019,-300.0,0.00041369,7]
[326734899,1715290270028,-500.0,0.00041369,31]
[326734900,1715290270038,-511.62622087,0.00041369,31]
[326734901,1715290270047,-907.42,0.00041369,31]
[326734902,1715290270056,-500.0,0.00041369,31]
[326734903,1715290270066,-500.0,0.00041369,31]
[326734904,1715290270075,-1040.39,0.00041369,31]
[326734905,1715290270084,-882.53,0.00041369,31]
[326734906,1715290270095,-500.0,0.00041369,31]
[326734907,1715290270104,-500.0,0.00041369,31]
[326734908,1715290270113,-500.0,0.00041369,31]
[326734909,1715290270122,-500.0,0.00041369,31]
[326734910,1715290270131,-500.0,0.00041369,31]
[326734911,1715290270141,-500.0,0.00041369,31]
[326734912,1715290270150,-519.35671087,0.00041369,31]
[326734913,1715290270159,-500.0,0.00041369,31]
[326734914,1715290270168,-500.0,0.00041369,31]
[326734915,1715290270178,-843.82,0.00041369,31]
[326734916,1715290270187,-500.0,0.00041369,31]
[326734917,1715290270197,-651.45,0.00041369,31]
[326734918,1715290270206,-512.88342642,0.00041369,31]
[326734919,1715290270215,-2410.5,0.00041369,31]
[326734920,1715290270224,-500.0,0.00041369,31]
[326734921,1715290270233,-500.0,0.00041369,31]
[326734922,1715290270243,-500.0,0.00041369,31]
[326734923,1715290270253,-640.14,0.00041369,31]
[326734924,1715290270263,-500.0,0.00041369,31]
[326734925,1715290270273,-500.0,0.00041369,31]
[326734926,1715290270283,-1010.46,0.00041369,31]
[326734927,1715290270293,-500.0,0.00041369,31]
[326734928,1715290270303,-546.73,0.00041369,31]
[326734929,1715290270313,-500.0,0.00041369,31]
[326734930,1715290270322,-543.20291884,0.00041369,31]
[326734931,1715290270475,-500.0,0.00041369,31]
[326734932,1715290270485,-500.0,0.00041369,31]
[326734933,1715290270495,-500.0,0.00041369,31]
[326734934,1715290270504,-1394.83,0.00041369,31]
[326734935,1715290270514,-500.0,0.00041369,31]
[326734936,1715290270524,-500.0,0.00041369,31]
[326734937,1715290270534,-500.0,0.00041369,31]
[326734938,1715290270543,-500.0,0.00041369,31]
[326734939,1715290270552,-500.0,0.00041369,31]
[326734940,1715290270562,-1742.72,0.00041369,31]
[326734941,1715290270571,-1495.39,0.00041369,31]
[326734942,1715290270580,-502.57500986,0.00041369,31]
[326734943,1715290270590,-960.78,0.00041369,31]
[326734944,1715290270599,-500.0,0.00041369,31]
[326734945,1715290270609,-500.0,0.00041369,31]
[326734946,1715290270618,-500.0,0.00041369,31]
[326734947,1715290270627,-500.0,0.00041369,31]
[326734948,1715290270637,-1658.7,0.00041369,31]
[326734949,1715290270646,-522.02881497,0.00041369,31]
[326734950,1715290270656,-708.19,0.00041369,31]
[326734951,1715290270665,-593.86,0.00041369,31]
[326734952,1715290270674,-1822.16,0.00041369,31]
[326734953,1715290270684,-500.0,0.00041369,31]
[326734954,1715290270693,-500.0,0.00041369,31]
[326734955,1715290270702,-500.0,0.00041369,31]
[326734956,1715290270711,-500.0,0.00041369,31]
[326734957,1715290270721,-1084.13,0.00041369,31]
[326734958,1715290270731,-500.0,0.00041369,31]
[326734959,1715290270741,-500.0,0.00041369,31]
[326734960,1715290270750,-500.0,0.00041369,31]
[326734961,1715290270759,-500.0,0.00041369,31]
[326734962,1715290270769,-500.0,0.00041369,31]
[326734963,1715290270779,-788.58,0.00041369,31]
[326734964,1715290270788,-500.0,0.00041369,31]
[326734965,1715290270797,-500.0,0.00041369,31]
[326734966,1715290270807,-1076.63,0.00041369,31]
[326734967,1715290270816,-590.58,0.00041369,31]
[326734968,1715290270825,-178.31764675,0.00041369,31]
[326734969,1715290270834,-500.0,0.00041369,31]
[326734970,1715290270849,-151.0,0.00041369,14]
[326734971,1715290270859,-500.0,0.00041369,31]
[326734972,1715290270868,-500.0,0.00041369,31]
[326734973,1715290270878,-500.0,0.00041369,31]
[326734974,1715290270891,-500.0,0.00041369,31]
[326734975,1715290270901,-500.0,0.00041369,31]
[326734976,1715290270910,-500.0,0.00041369,31]
[326734977,1715290270919,-500.0,0.00041369,31]
[326734978,1715290270929,-506.43003526,0.00041369,31]
[326734979,1715290270939,-500.0,0.00041369,31]
[326734980,1715290270949,-500.0,0.00041369,31]
[326734981,1715290270957,-500.0,0.00041369,31]
[326734982,1715290270967,-928.79,0.00041369,31]
[326734983,1715290270976,-500.0,0.00041369,31]
[326734984,1715290270986,-500.0,0.00041369,31]
[326734985,1715290270996,-500.0,0.00041369,31]
[326734986,1715290271006,-500.0,0.00041369,31]
[326734987,1715290271017,-909.38,0.00041369,31]
[326734988,1715290271026,-500.0,0.00041369,31]
[326734989,1715290271036,-541.85,0.00041369,31]
[326734990,1715290271046,-500.0,0.00041369,31]
[326734991,1715290271055,-500.0,0.00041369,31]
[326734992,1715290271065,-500.0,0.00041369,31]
[326734993,1715290271075,-512.29627761,0.00041369,31]
[326734994,1715290271085,-2911.76,0.00041369,31]
[326734995,1715290271095,-151.0,0.00041369,14]
[326734996,1715290271105,-500.0,0.00041369,31]
[326734997,1715290271115,-199.4235839,0.00041369,31]
[326734998,1715290271124,-500.0,0.00041369,31]
[326734999,1715290271135,-719.79,0.00041369,31]
[326735000,1715290271145,-2718.81,0.00041369,31]
[326735001,1715290271156,-500.0,0.00041369,2]
[326735002,1715290271166,-500.0,0.00041369,31]
[326735003,1715290271175,-500.0,0.00041369,31]
[326735004,1715290271184,-500.0,0.00041369,31]
[326735005,1715290271193,-1575.22,0.00041369,31]
[326735006,1715290271204,-500.0,0.00041369,31]
[326735007,1715290271215,-500.0,0.00041369,31]
[326735008,1715290271225,-540.3,0.00041369,31]
[326735009,1715290271235,-700.44,0.00041369,31]
[326735010,1715290271245,-2350.05,0.00041369,31]
[326735011,1715290271254,-500.0,0.00041369,31]
[326735012,1715290271265,-560.09,0.00041369,31]
[326735013,1715290271274,-2067.31,0.00041369,31]
[326735014,1715290271285,-500.0,0.00041369,31]
[326735015,1715290271296,-500.0,0.00041369,31]
[326735016,1715290271307,-500.0,0.00041369,31]
[326735017,1715290271316,-1065.75,0.00041369,31]
[326735018,1715290271325,-500.0,0.00041369,31]
[326735019,1715290271334,-1252.97,0.00041369,31]
[326735020,1715290271344,-500.0,0.00041369,31]
[326735021,1715290271353,-500.0,0.00041369,31]
[326735022,1715290271362,-2218.89,0.00041369,31]
[326735023,1715290271371,-500.0,0.00041369,31]
[326735024,1715290271380,-500.0,0.00041369,31]
[326735025,1715290271389,-500.0,0.00041369,31]
[326735026,1715290271398,-500.0,0.00041369,31]
[326735027,1715290271407,-500.0,0.00041369,31]
[326735028,1715290271416,-963.81,0.00041369,31]
[326735029,1715290271425,-513.6,0.00041369,31]
[326735030,1715290271435,-943.45,0.00041369,31]
[326735031,1715290271444,-327.56,0.00041369,31]
[326735032,1715290271453,-500.0,0.00041369,31]
[326735033,1715290271462,-500.0,0.00041369,31]
[326735034,1715290271471,-500.0,0.00041369,31]
[326735035,1715290271491,-770.87,0.00041369,31]
[326735036,1715290271508,-1332.55,0.00041369,31]
[326735037,1715290271526,-798.6,0.00041369,31]
[326735038,1715290271545,-500.0,0.00041369,31]
[326735039,1715290271563,-500.0,0.00041369,31]
[326735040,1715290271579,-500.0,0.00041369,31]
[326735041,1715290271597,-787.19,0.00041369,31]
[326735042,1715290271610,-500.0,0.00041369,31]
[326735043,1715290271626,-500.0,0.00041369,31]
[326735044,1715290271644,-20000.0,0.00041369,2]
[326735045,1715290271663,-3381.99,0.00041369,30]
[326735046,1715290271677,-500.0,0.00041369,31]
[326735047,1715290271693,-1198.32,0.00041369,31]
[326735048,1715290271710,-500.0,0.00041369,31]
[326735049,1715290271727,-1980.54,0.00041369,31]
[326735050,1715290271739,-500.0,0.00041369,31]
[326735051,1715290271755,-1307.98,0.00041369,31]
[326735052,1715290271770,-5000.0,0.00041369,31]
[326735053,1715290271785,-500.0,0.00041369,31]
[326735054,1715290271799,-545.06946279,0.00041369,31]
[326735055,1715290271815,-503.85265273,0.00041369,31]
[326735056,1715290271829,-1221.93,0.00041369,31]
[326735057,1715290271847,-500.0,0.00041369,2]
[326735058,1715290271862,-500.0,0.00041369,31]
[326735059,1715290271877,-151.0,0.00041369,14]
[326735060,1715290271892,-830.33,0.00041369,31]
[326735061,1715290271906,-500.0,0.00041369,31]
[326735062,1715290271923,-500.0,0.00041369,31]
[326735063,1715290271938,-500.0,0.00041369,31]
[326735064,1715290271951,-568.49,0.00041369,31]
[326735065,1715290271965,-500.0,0.00041369,31]
[326735066,1715290271980,-500.0,0.00041369,31]
[326735067,1715290271994,-500.0,0.00041369,31]
[326735068,1715290272008,-500.0,0.00041369,31]
[326735069,1715290272023,-502.82640268,0.00041369,31]
[326735070,1715290272038,-500.0,0.00041369,31]
[326735071,1715290272052,-500.0,0.00041369,31]
[326735072,1715290272066,-1110.63,0.00041369,31]
[326735073,1715290272079,-500.0,0.00041369,31]
[326735074,1715290272094,-1072.7,0.00041369,31]
[326735075,1715290272108,-151.0,0.00041369,14]
[326735076,1715290272122,-500.0,0.00041369,31]
[326735077,1715290272137,-500.0,0.00041369,31]
[326735078,1715290272151,-1017.16,0.00041369,31]
[326735079,1715290272165,-500.0,0.00041369,31]
[326735080,1715290272179,-500.0,0.00041369,31]
[326735081,1715290272193,-500.0,0.00041369,31]
[326735082,1715290272207,-151.478068,0.00041369,14]
[326735083,1715290272226,-518.85643085,0.00041369,31]
[326735084,1715290272240,-1413.01,0.00041369,31]
[326735085,1715290272255,-500.0,0.00041369,31]
[326735086,1715290272270,-500.0,0.00041369,31]
[326735087,1715290272285,-500.0,0.00041369,31]
[326735088,1715290272299,-718.43,0.00041369,31]
[326735089,1715290272315,-1564.4,0.00041369,31]
[326735090,1715290272331,-500.0,0.00041369,31]
[326735091,1715290272346,-151.478068,0.00041369,14]
[326735092,1715290272361,-500.0,0.00041369,31]
[326735093,1715290272377,-1090.36,0.00041369,31]
[326735094,1715290272391,-500.0,0.00041369,31]
[326735095,1715290272406,-500.0,0.00041369,31]
[326735096,1715290272420,-500.0,0.00041369,31]
[326735097,1715290272435,-500.0,0.00041369,31]
[326735098,1715290272450,-769.35,0.00041369,31]
[326735099,1715290272466,-562.98,0.00041369,31]
[326735100,1715290272484,-500.0,0.00041369,31]
[326735101,1715290272502,-500.0,0.00041369,31]
[326735102,1715290272517,-500.0,0.00041369,31]
[326735103,1715290272531,-500.0,0.00041369,31]
[326735104,1715290272545,-500.0,0.00041369,31]
[326735105,1715290272560,-1579.96,0.00041369,31]
[326735106,1715290272574,-1118.27,0.00041369,31]
[326735107,1715290272588,-500.0,0.00041369,31]
[326735108,1715290272603,-500.0,0.00041369,31]
[326735109,1715290272617,-1773.87,0.00041369,31]
[326735110,1715290272631,-641.90762808,0.00041369,31]
[326735111,1715290272646,-1444.09,0.00041369,31]
[326735112,1715290272659,-837.88,0.00041369,31]
[326735113,1715290272674,-546.09449176,0.00041369,31]
[326735114,1715290272688,-500.0,0.00041369,31]
[326735115,1715290272703,-500.0,0.00041369,31]
[326735116,1715290272718,-500.0,0.00041369,31]
[326735117,1715290272732,-500.0,0.00041369,31]
[326735118,1715290272747,-500.0,0.00041369,31]
[326735119,1715290272762,-645.23,0.00041369,31]
[326735120,1715290272776,-500.0,0.00041369,31]
[326735121,1715290272791,-500.0,0.00041369,31]
[326735122,1715290272805,-500.0,0.00041369,31]
[326735123,1715290272819,-502.74760231,0.00041369,31]
[326735124,1715290272833,-500.0,0.00041369,31]
[326735125,1715290272850,-1111.73,0.00041369,31]
[326735126,1715290272865,-500.0,0.00041369,31]
[326735127,1715290272880,-761.26,0.00041369,31]
[326735128,1715290272895,-500.0,0.00041369,31]
[326735129,1715290272910,-414.32018274,0.00041369,31]
[326735130,1715290272925,-863.41,0.00041369,31]
[326735131,1715290272940,-151.0,0.00041369,14]
[326735132,1715290272956,-590.71,0.00041369,31]
[326735133,1715290272970,-508.55904315,0.00041369,31]
[326735134,1715290272985,-500.0,0.00041369,31]
[326735135,1715290273001,-500.0,0.00041369,31]
[326735136,1715290273016,-500.0,0.00041369,31]
[326735137,1715290273031,-1966.38,0.00041369,31]
[326735138,1715290273047,-500.0,0.00041369,31]
[326735139,1715290273061,-579.23302114,0.00041369,31]
[326735140,1715290273265,-686.29,0.00041369,31]
[326735141,1715290273280,-500.0,0.00041369,31]
[326735142,1715290273289,-500.0,0.00041369,31]
[326735143,1715290273298,-500.0,0.00041369,31]
[326735144,1715290273308,-1459.05,0.00041369,31]
[326735145,1715290273317,-3585.9,0.00041369,31]
[326735146,1715290273327,-1662.29,0.00041369,31]
[326735147,1715290273336,-500.0,0.00041369,31]
[326735148,1715290273345,-500.0,0.00041369,31]
[326735149,1715290273355,-513.00721249,0.00041369,31]
[326735150,1715290273363,-500.0,0.00041369,31]
[326735151,1715290273373,-500.0,0.00041369,31]
[326735152,1715290273382,-500.0,0.00041369,31]
[326735153,1715290273391,-500.0,0.00041369,31]
[326735154,1715290273400,-500.0,0.00041369,31]
[326735155,1715290273409,-500.0,0.00041369,31]
[326735156,1715290273418,-509.44376058,0.00041369,31]
[326735157,1715290273427,-508.04589882,0.00041369,31]
[326735158,1715290273436,-500.0,0.00041369,31]
[326735159,1715290273445,-500.0,0.00041369,31]
[326735160,1715290273455,-506.46378973,0.00041369,31]
[326735161,1715290273464,-500.0,0.00041369,31]
[326735162,1715290273473,-500.0,0.00041369,31]
[326735163,1715290273482,-500.0,0.00041369,31]
[326735164,1715290273491,-500.0,0.00041369,31]
[326735165,1715290273501,-500.0,0.00041369,2]
[326735166,1715290273510,-1410.0,0.00041369,30]
[326735167,1715290273519,-500.0,0.00041369,31]
[326735168,1715290273528,-500.0,0.00041369,31]
[326735169,1715290273537,-500.0,0.00041369,31]
[326735170,1715290273547,-500.0,0.00041369,31]
[326735171,1715290273556,-842.87,0.00041369,31]
[326735172,1715290273565,-500.0,0.00041369,31]
[326735173,1715290273575,-151.0,0.00041369,14]
[326735174,1715290273583,-152.590505,0.00041369,14]
[326735175,1715290273593,-500.0,0.00041369,31]
[326735176,1715290273602,-500.0,0.00041369,31]
[326735177,1715290273611,-1288.43,0.00041369,31]
[326735178,1715290273620,-500.0,0.00041369,31]
[326735179,1715290273629,-500.0,0.00041369,31]
[326735180,1715290273638,-500.0,0.00041369,31]
[326735181,1715290273647,-2145.77,0.00041369,31]
[326735182,1715290273656,-500.0,0.00041369,31]
[326735183,1715290273665,-500.0,0.00041369,31]
[326735184,1715290273674,-500.0,0.00041369,31]
[326735185,1715290273683,-680.58,0.00041369,31]
[326735186,1715290273692,-500.0,0.00041369,31]
[326735187,1715290273702,-2308.93,0.00041369,31]
[326735188,1715290273711,-500.0,0.00041369,31]
[326735189,1715290273721,-500.0,0.00041369,31]
[326735190,1715290273731,-500.0,0.00041369,31]